fUSD/lending_fUSD_20241123
["ID","MTS","AMOUNT","RATE_DAILY","PERIOD"]
[343084011,1732342160273,-500.0,0.0005308,120]
[343084012,1732342160301,-500.0,0.0005308,120]
[343084013,1732342160323,-500.0,0.0005308,120]
[343084014,1732342160348,-500.0,0.0005308,120]
[343084015,1732342160374,-500.0,0.0005308,120]
[343084016,1732342160396,-500.0,0.0005308,120]
[343084017,1732342160418,-500.0,0.0005308,120]
[343084018,1732342160441,-500.0,0.0005308,120]
[343084019,1732342160464,-371.77330763,0.0005308,120]
[343084020,1732342160487,-500.0,0.0005308,120]
[343084021,1732342160510,-500.0,0.0005308,120]
[343084022,1732342160547,-505.95434117,0.0005308,120]
[343084023,1732342160580,-544.18612982,0.0005308,120]
[343084024,1732342160603,-500.0,0.0005308,120]
[343084025,1732342160635,-500.0,0.0005308,120]
[343084026,1732342160659,-500.0,0.0005308,120]
[343084027,1732342160681,-500.0,0.0005308,120]
[343084028,1732342160702,-500.0,0.0005308,120]
[343084029,1732342160724,-643.42899225,0.0005308,120]
[343084030,1732342160747,-500.0,0.0005308,120]
[343084031,1732342160769,-500.0,0.0005308,120]
[343084032,1732342160792,-500.0,0.0005308,120]
[343084033,1732342160813,-515.75177583,0.0005308,120]
[343084034,1732342160835,-500.0,0.0005308,120]
[343084035,1732342160860,-506.47002183,0.0005308,120]
[343084036,1732342160883,-500.0,0.0005308,120]
[343084037,1732342160906,-500.0,0.0005308,120]
[343084038,1732342160930,-500.0,0.0005308,120]
[343084039,1732342160954,-500.0,0.0005308,120]
[343084040,1732342160977,-500.0,0.0005308,120]
[343084041,1732342160999,-500.0,0.0005308,120]
[343084042,1732342161022,-500.0,0.0005308,120]
[343084043,1732342161044,-500.0,0.0005308,120]
[343084044,1732342161066,-577.98802896,0.0005308,120]
[343084045,1732342161088,-507.73709865,0.0005308,120]
[343084046,1732342161111,-522.17435243,0.0005308,120]
[343084047,1732342161134,-500.0,0.0005308,120]
[343084048,1732342161158,-515.39620427,0.0005308,120]
[343084049,1732342161181,-4633.62,0.0005308,120]
[343084050,1732342161203,-4633.62,0.0005308,120]
[343084051,1732342161225,-4633.62,0.0005308,120]
[343084052,1732342161249,-4633.62,0.0005308,120]
[343084053,1732342161271,-4633.62,0.0005308,120]
[343084054,1732342161294,-4633.62,0.0005308,120]
[343084055,1732342161315,-281.31802179,0.0005308,120]
[343084056,1732342161337,-500.0,0.0005308,120]
[343084057,1732342161363,-500.0,0.0005308,120]
[343084058,1732342161384,-500.0,0.0005308,120]
[343084059,1732342161406,-500.0,0.0005308,120]
[343084060,1732342161428,-290.19243998,0.0005308,120]
[343084061,1732342161449,-500.0,0.0005308,120]
[343084062,1732342161471,-500.0,0.0005308,120]
[343084063,1732342161493,-333.18227272,0.0005308,120]
[343084064,1732342161515,-500.0,0.0005308,120]
[343084065,1732342161536,-500.0,0.0005308,120]
[343084066,1732342161558,-332.18729739,0.0005308,120]
[343084067,1732342161580,-538.49783123,0.0005308,120]
[343084068,1732342161602,-500.0,0.0005308,120]
[343084069,1732342161624,-500.0,0.0005308,120]
[343084070,1732342161647,-500.0,0.0005308,120]
[343084071,1732342161669,-500.0,0.0005308,120]
[343084072,1732342161812,-254.72559482,0.0005308,120]
[343084073,1732342161837,-500.0,0.0005308,120]
[343084074,1732342161862,-500.0,0.0005308,120]
[343084075,1732342161884,-500.0,0.0005308,120]
[343084076,1732342161906,-500.0,0.0005308,120]
[343084077,1732342161929,-500.0,0.0005308,120]
[343084078,1732342161952,-500.0,0.0005308,120]
[343084079,1732342161974,-779.99,0.0005308,120]
[343084080,1732342161996,-779.99,0.0005308,120]
[343084081,1732342162019,-779.99,0.0005308,120]
[343084082,1732342162041,-779.99,0.0005308,120]
[343084083,1732342162063,-779.99,0.0005308,120]
[343084084,1732342162085,-779.99,0.0005308,120]
[343084085,1732342162110,-311.96079968,0.0005308,120]
[343084086,1732342162131,-1242.11,0.0005308,120]
[343084087,1732342162153,-1242.11,0.0005308,120]
[343084088,1732342162175,-1242.11,0.0005308,120]
[343084089,1732342162197,-1242.11,0.0005308,120]
[343084090,1732342162219,-1242.11,0.0005308,120]
[343084091,1732342162241,-1242.11,0.0005308,120]
[343084092,1732342162263,-1308.43,0.0005308,120]
[343084093,1732342162284,-1308.43,0.0005308,120]
[343084094,1732342162305,-1308.43,0.0005308,120]
[343084095,1732342162326,-1308.43,0.0005308,120]
[343084096,1732342162349,-1308.43,0.0005308,120]
[343084097,1732342162373,-1308.43,0.0005308,120]
[343084098,1732342162396,-1310.79,0.0005308,120]
[343084099,1732342162418,-1310.79,0.0005308,120]
[343084100,1732342162442,-1310.79,0.0005308,120]
[343084101,1732342162464,-1310.79,0.0005308,120]
[343084102,1732342162485,-1310.79,0.0005308,120]
[343084103,1732342162505,-1310.79,0.0005308,120]
[343084104,1732342162527,-1901.65,0.0005308,120]
[343084105,1732342162548,-1901.65,0.0005308,120]
[343084106,1732342162569,-1901.65,0.0005308,120]
[343084107,1732342162592,-325.09359622,0.0005308,120]
[343084108,1732342163564,-500.0,0.00053079,120]
[343084109,1732342163586,-2242.71,0.00053079,120]
[343084110,1732342163614,-2242.71,0.00053079,120]
[343084111,1732342163639,-195.71,0.0005308,120]
[343084112,1732342163660,-500.0,0.0005308,120]
[343084113,1732342163680,-500.0,0.0005308,120]
[343084114,1732342163701,-500.0,0.0005308,120]
[343084115,1732342163721,-500.0,0.0005308,120]
[343084116,1732342163741,-200.71757398,0.0005308,120]
[343084117,1732342163880,-1507.34,0.0005308,120]
[343084118,1732342163901,-1507.34,0.0005308,120]
[343084119,1732342163924,-1507.34,0.0005308,120]
[343084120,1732342163945,-1507.34,0.0005308,120]
[343084121,1732342163967,-1507.34,0.0005308,120]
[343084122,1732342163988,-1507.34,0.0005308,120]
[343084123,1732342164008,-500.0,0.0005308,120]
[343084124,1732342164033,-500.0,0.0005308,120]
[343084125,1732342164054,-500.0,0.0005308,120]
[343084126,1732342164076,-500.0,0.0005308,120]
[343084127,1732342164097,-364.14,0.0005308,120]
[343084128,1732342164119,-13055.42,0.0005308,120]
[343084129,1732342164142,-13055.42,0.0005308,120]
[343084130,1732342164164,-181.12182602,0.0005308,120]
[343084131,1732342169102,-500.0,0.00053079,120]
[343084132,1732342169124,-500.0,0.00053079,120]
[343084133,1732342169147,-1734.18,0.00053079,120]
[343084134,1732342169170,-12874.29817398,0.0005308,120]
[343084135,1732342169193,-11408.39016602,0.0005308,120]
[343084136,1732342172099,-4158.57,0.00053079,120]
[343084137,1732342172124,-1647.02983398,0.0005308,120]
[343084138,1732342172147,-13055.42,0.0005308,120]
[343084139,1732342172169,-13055.42,0.0005308,120]
[343084140,1732342172191,-500.0,0.0005308,120]
[343084141,1732342172213,-500.0,0.0005308,120]
[343084142,1732342172233,-500.0,0.0005308,120]
[343084143,1732342172254,-500.0,0.0005308,120]
[343084144,1732342172275,-500.0,0.0005308,120]
[343084145,1732342172296,-500.0,0.0005308,120]
[343084146,1732342172316,-500.0,0.0005308,120]
[343084147,1732342172338,-754.90706771,0.0005308,120]
[343084162,1732342231724,-500.0,0.00053073,2]
[343084163,1732342231861,-466.106599,0.00053079,120]
[343084164,1732342231872,-461.1135249,0.00053079,120]
[343084165,1732342231918,-0.29138877,0.00053079,120]
[343084166,1732342231972,-1574.5,0.00053079,120]
[343084167,1732342232012,-440.36938977,0.00053079,120]
[343084168,1732342232023,-516.77618192,0.00053079,120]
[343084169,1732342232035,-348.51384312,0.00053079,120]
[343084187,1732342235174,165.670802,0.000428,30]
[343084190,1732342237749,-692.38562455,0.00053079,120]
[343084191,1732342237761,-4747.53344797,0.00053079,120]
[343084192,1732342237770,-9247.59,0.00053079,120]
[343084193,1732342237778,-1130.51,0.00053079,120]
[343084194,1732342237787,-500.0,0.00053079,120]
[343084195,1732342237795,-500.0,0.00053079,120]
[343084196,1732342237804,-500.0,0.00053079,120]
[343084197,1732342237813,-500.0,0.00053079,120]
[343084198,1732342237822,-500.0,0.00053079,120]
[343084199,1732342237831,-3914.56,0.00053079,120]
[343084200,1732342237841,-500.0,0.00053079,120]
[343084201,1732342237851,-500.0,0.00053079,120]
[343084202,1732342237861,-604.08,0.00053079,120]
[343084203,1732342237871,-3328.67,0.00053079,120]
[343084204,1732342237881,-500.0,0.0005308,120]
[343084205,1732342237890,-500.0,0.0005308,120]
[343084206,1732342237904,-500.0,0.0005308,120]
[343084207,1732342237913,-500.0,0.0005308,120]
[343084208,1732342237927,-500.0,0.0005308,120]
[343084209,1732342237937,-500.0,0.0005308,120]
[343084210,1732342237947,-500.0,0.0005308,120]
[343084211,1732342237956,-399.76678933,0.0005308,120]
[343084212,1732342237965,-500.0,0.0005308,120]
[343084213,1732342237975,-500.0,0.0005308,120]
[343084214,1732342237984,-500.0,0.0005308,120]
[343084215,1732342237993,-500.0,0.0005308,120]
[343084216,1732342238002,-500.0,0.0005308,120]
[343084217,1732342238011,-3297.28,0.0005308,120]
[343084218,1732342238021,-3297.28,0.0005308,120]
[343084219,1732342238030,-3297.28,0.0005308,120]
[343084220,1732342238039,-3297.28,0.0005308,120]
[343084221,1732342238048,-3297.28,0.0005308,120]
[343084222,1732342238058,-3297.28,0.0005308,120]
[343084223,1732342238067,-2033.7,0.0005308,120]
[343084224,1732342238077,-2033.7,0.0005308,120]
[343084225,1732342238087,-2033.7,0.0005308,120]
[343084226,1732342238096,-2033.7,0.0005308,120]
[343084227,1732342238106,-2033.7,0.0005308,120]
[343084228,1732342238115,-2033.7,0.0005308,120]
[343084229,1732342238125,-500.0,0.0005308,120]
[343084230,1732342238135,-500.0,0.0005308,120]
[343084231,1732342238144,-502.37667912,0.0005308,120]
[343084232,1732342238156,-1697.18,0.0005308,120]
[343084233,1732342238165,-1697.18,0.0005308,120]
[343084234,1732342238175,-1697.18,0.0005308,120]
[343084235,1732342238185,-1697.18,0.0005308,120]
[343084236,1732342238195,-573.65,0.0005308,120]
[343084237,1732342238204,-1697.18,0.0005308,120]
[343084238,1732342238214,-573.65,0.0005308,120]
[343084239,1732342238224,-1697.18,0.0005308,120]
[343084240,1732342238233,-573.65,0.0005308,120]
[343084241,1732342238243,-573.65,0.0005308,120]
[343084242,1732342238254,-573.65,0.0005308,120]
[343084243,1732342238263,-573.65,0.0005308,120]
[343084244,1732342238273,-1667.32,0.0005308,120]
[343084245,1732342238282,-1667.32,0.0005308,120]
[343084246,1732342238291,-1667.32,0.0005308,120]
[343084247,1732342238301,-1667.32,0.0005308,120]
[343084248,1732342238311,-1667.32,0.0005308,120]
[343084249,1732342238321,-1667.32,0.0005308,120]
[343084250,1732342238330,-500.0,0.0005308,120]
[343084251,1732342238340,-351.43,0.0005308,120]
[343084252,1732342238350,-500.0,0.0005308,120]
[343084253,1732342238360,-500.0,0.0005308,120]
[343084254,1732342238370,-500.0,0.0005308,120]
[343084255,1732342238383,-353.07742966,0.0005308,21]
[343084256,1732342238392,-161.4777985,0.0005308,120]
[343084257,1732342238404,-1270.04,0.0005308,120]
[343084258,1732342238415,-1270.04,0.0005308,120]
[343084259,1732342238425,-1270.04,0.0005308,120]
[343084260,1732342238435,-1270.04,0.0005308,120]
[343084261,1732342238444,-356.98785542,0.0005308,120]
[343084264,1732342240809,-913.05214458,0.0005308,120]
[343084265,1732342240818,-1077.25376295,0.0005308,120]
[343084266,1732342240840,-192.78623705,0.0005308,120]
[343084267,1732342240850,-500.0,0.0005308,120]
[343084268,1732342240859,-500.0,0.0005308,120]
[343084269,1732342240868,-463.6246822,0.0005308,120]
[343084270,1732342240877,-527.03485076,0.0005308,120]
[343084271,1732342240886,-500.0,0.0005308,120]
[343084272,1732342240895,-500.0,0.0005308,120]
[343084273,1732342240906,-500.0,0.0005308,120]
[343084274,1732342240916,-500.0,0.0005308,120]
[343084275,1732342240926,-500.0,0.0005308,120]
[343084276,1732342240935,-500.0,0.0005308,120]
[343084277,1732342240946,-500.0,0.0005308,120]
[343084278,1732342240955,-500.0,0.0005308,120]
[343084279,1732342240963,-500.0,0.0005308,120]
[343084280,1732342240972,-500.0,0.0005308,120]
[343084281,1732342240981,-500.0,0.0005308,120]
[343084282,1732342240990,-500.0,0.0005308,120]
[343084283,1732342241000,-500.0,0.0005308,120]
[343084284,1732342241090,-161.138296,0.0005308,120]
[343084285,1732342241100,-161.138296,0.0005308,120]
[343084286,1732342241109,-161.138296,0.0005308,120]
[343084287,1732342241118,-500.0,0.0005308,120]
[343084288,1732342241127,-500.0,0.0005308,120]
[343084289,1732342241136,-500.0,0.0005308,120]
[343084290,1732342241144,-500.0,0.0005308,120]
[343084291,1732342241155,-450.0,0.0005308,120]
[343084292,1732342241164,-500.0,0.0005308,120]
[343084293,1732342241174,-500.0,0.0005308,120]
[343084294,1732342241183,-185.55294551,0.0005308,120]
[343084295,1732342241192,-500.0,0.0005308,120]
[343084296,1732342241201,-203.59034024,0.0005308,120]
[343084297,1732342241211,-500.0,0.0005308,120]
[343084298,1732342241220,-500.0,0.0005308,120]
[343084299,1732342241229,-500.0,0.0005308,120]
[343084300,1732342241239,-500.0,0.0005308,120]
[343084301,1732342241248,-500.0,0.0005308,120]
[343084302,1732342241257,-500.0,0.0005308,120]
[343084303,1732342241268,-500.0,0.0005308,120]
[343084304,1732342241277,-500.0,0.0005308,120]
[343084305,1732342241286,-500.0,0.0005308,120]
[343084306,1732342241295,-500.0,0.0005308,120]
[343084307,1732342241304,-474.82066396,0.0005308,120]
[343084308,1732342241317,-25.17933604,0.0005308,120]
[343084309,1732342241326,-500.0,0.0005308,120]
[343084310,1732342241335,-500.0,0.0005308,120]
[343084311,1732342241345,-500.0,0.0005308,120]
[343084312,1732342241354,-245.72229292,0.0005308,120]
[343084313,1732342241376,-254.27770708,0.0005308,120]
[343084314,1732342241385,-463.37799292,0.0005308,120]
[343084315,1732342241453,-36.62200708,0.0005308,120]
[343084316,1732342241462,-500.0,0.0005308,120]
[343084317,1732342241473,-397.5935897,0.0005308,120]
[343084318,1732342241483,-180.31005471,0.0005308,120]
[343084319,1732342241494,-319.68994529,0.0005308,120]
[343084320,1732342241504,-500.0,0.0005308,120]
[343084321,1732342241514,-500.0,0.0005308,120]
[343084322,1732342241524,-500.0,0.0005308,120]
[343084323,1732342241533,-500.0,0.0005308,120]
[343084324,1732342241543,-500.0,0.0005308,120]
[343084325,1732342241552,-500.0,0.0005308,120]
[343084326,1732342241562,-502.78721904,0.0005308,120]
[343084327,1732342241571,-500.0,0.0005308,120]
[343084328,1732342241581,-104.52261281,0.0005308,120]
[343084329,1732342241596,-395.47738719,0.0005308,120]
[343084330,1732342241607,-299.35991634,0.0005308,120]
[343084331,1732342241616,-472.27934527,0.0005308,120]
[343084332,1732342241627,-3225.62065473,0.0005308,120]
[343084333,1732342241636,-2166.37934527,0.0005308,120]
[343084338,1732342243351,-816.70716306,0.0005308,120]
[343084339,1732342243363,-714.81349167,0.0005308,120]
[343084340,1732342243375,-500.0,0.0005308,120]
[343084341,1732342243385,-3697.9,0.0005308,120]
[343084342,1732342243393,-500.0,0.0005308,120]
[343084343,1732342243403,-821.27675332,0.0005308,120]
[343084344,1732342243416,-2876.62324668,0.0005308,120]
[343084345,1732342243426,-3365.32,0.0005308,120]
[343084346,1732342243435,-500.0,0.0005308,120]
[343084347,1732342243446,-3697.9,0.0005308,120]
[343084348,1732342243456,-3365.32,0.0005308,120]
[343084349,1732342243466,-500.0,0.0005308,120]
[343084350,1732342243475,-884.94334356,0.0005308,120]
[343084351,1732342243487,-360.56952175,0.0005308,120]
[343084352,1732342243503,-2452.38713469,0.0005308,120]
[343084353,1732342243512,-3365.32,0.0005308,120]
[343084354,1732342243521,-500.0,0.0005308,120]
[343084355,1732342243530,-500.0,0.0005308,120]
[343084356,1732342243539,-3365.32,0.0005308,120]
[343084357,1732342243549,-3365.32,0.0005308,120]
[343084358,1732342243558,-3365.32,0.0005308,120]
[343084359,1732342243568,-500.0,0.0005308,120]
[343084360,1732342243577,-500.0,0.0005308,120]
[343084361,1732342243587,-386.40764621,0.0005308,120]
[343084362,1732342243596,-500.0,0.0005308,120]
[343084363,1732342243606,-510.91462617,0.0005308,120]
[343084364,1732342243618,-103.00209482,0.0005308,120]
[343084365,1732342243627,-500.0,0.0005308,120]
[343084367,1732342243636,-500.0,0.0005308,120]
[343084369,1732342243646,-500.0,0.0005308,120]
[343084371,1732342243657,-510.16660779,0.0005308,120]
[343084373,1732342243666,-500.0,0.0005308,120]
[343084375,1732342243676,-500.0,0.0005308,120]
[343084377,1732342243685,-505.21493336,0.0005308,120]
[343084379,1732342243695,-500.0,0.0005308,120]
[343084381,1732342243705,-499.31636403,0.0005308,120]
[343084389,1732342243772,-0.68363597,0.0005308,120]
[343084391,1732342243781,-9.735993,0.0005308,120]
[343084395,1732342244462,-490.264007,0.0005308,120]
[343084396,1732342244472,-500.0,0.0005308,120]
[343084397,1732342244483,-500.0,0.0005308,120]
[343084398,1732342244494,-500.0,0.0005308,120]
[343084399,1732342244505,-500.0,0.0005308,120]
[343084400,1732342244514,-500.0,0.0005308,120]
[343084401,1732342244524,-500.0,0.0005308,120]
[343084402,1732342244533,-366.69596526,0.0005308,120]
[343084414,1732342245910,-1817.81040109,0.0005308,120]
[343084415,1732342245954,-1199.73363365,0.0005308,120]
[343084416,1732342245964,-918.51475635,0.0005308,120]
[343084422,1732342246194,-296.56875462,0.0005308,120]
[343084472,1732342258549,584.41,0.00052442,120]
[343084473,1732342276717,842.67,0.00050455,2]
[343084474,1732342290918,1000.0,0.00052218,120]
[343084475,1732342291321,-164.51,0.00052671,120]
[343084476,1732342291345,-3517.31,0.00053079,120]
[343084477,1732342291371,-1009.51,0.00053079,120]
[343084478,1732342291399,-1009.51,0.00053079,120]
[343084479,1732342291425,-791.38,0.00053079,120]
[343084480,1732342291452,-756.53,0.00053079,120]
[343084481,1732342291478,-1202.17,0.00053079,120]
[343084482,1732342291501,-1202.17,0.00053079,120]
[343084483,1732342291525,-1401.98,0.00053079,120]
[343084484,1732342291551,-500.0,0.00053079,120]
[343084485,1732342291574,-850.8,0.00053079,120]
[343084486,1732342291600,-850.8,0.00053079,120]
[343084487,1732342291626,-825.61,0.00053079,120]
[343084488,1732342291652,-2169.15648903,0.0005308,120]
[343084489,1732342291676,-3384.24,0.0005308,120]
[343084490,1732342291701,-3384.24,0.0005308,120]
[343084491,1732342291728,-3384.24,0.0005308,120]
[343084492,1732342291751,-3384.24,0.0005308,120]
[343084493,1732342291776,-3706.08,0.0005308,120]
[343084494,1732342291800,-3706.08,0.0005308,120]
[343084495,1732342291823,-3706.08,0.0005308,120]
[343084496,1732342291846,-2093.36351097,0.0005308,120]
[343084497,1732342297375,349.68109275,0.00038,120]
[343084498,1732342305691,349.68109275,0.0004,120]
[343084499,1732342314008,699.36218551,0.00043,120]
[343084500,1732342323269,874.20273188,0.00046,120]
[343084501,1732342325525,181.26,0.00052218,120]
[343084502,1732342332088,874.20273189,0.00048,120]
[343084503,1732342419367,167.26,0.00052084,2]
[343084504,1732342451270,408.99,0.00052084,2]
[343084505,1732342458483,150.0,0.00052083,2]
[343084506,1732342462386,158.04,0.00041096,2]
[343084508,1732342475384,200.0,0.00052083,2]
[343084509,1732342497907,150.16,0.00051841,2]
[343084510,1732342529778,374995.30466734,0.0005,120]
[343084511,1732342529805,55555.0,0.0005,120]
[343084512,1732342529832,569449.69533266,0.0005,120]
[343084513,1732342548434,1000000.0,0.0005,120]
[343084514,1732342574962,1000000.0,0.0005,120]
[343084515,1732342580284,10000000.0,0.0005,120]
[343084516,1732342584503,10000000.0,0.0005,120]
[343084517,1732342586042,-258.09,0.00052082,30]
[343084518,1732342586066,-500.0,0.00052082,2]
[343084519,1732342586089,-4341.0,0.00052547,117]
[343084520,1732342586112,-842.67,0.00052719,2]
[343084521,1732342586134,-1517.54018439,0.0005298,15]
[343084522,1732342586160,-4698.41414535,0.0005298,15]
[343084523,1732342586183,-5000.0,0.00052998,2]
[343084524,1732342586207,-471.43202452,0.00053073,7]
[343084525,1732342586229,-500.0,0.00053073,10]
[343084526,1732342586254,-500.0,0.00053073,2]
[343084527,1732342586275,-150.0,0.00053078,9]
[343084528,1732342586297,-188.92539833,0.00053079,11]
[343084529,1732342586319,-270.20956447,0.00053079,120]
[343084530,1732342586343,-1980.23,0.00053079,120]
[343084531,1732342586367,-500.0,0.00053079,120]
[343084532,1732342586390,-1005.48,0.00053079,120]
[343084533,1732342586414,-500.0,0.00053079,120]
[343084534,1732342586436,-1135.91,0.00053079,120]
[343084535,1732342586467,-3109.07,0.00053079,120]
[343084536,1732342586492,-500.0,0.00053079,120]
[343084537,1732342586516,-3626.99,0.00053079,120]
[343084538,1732342586539,-500.0,0.00053079,120]
[343084539,1732342586565,-962.6,0.00053079,120]
[343084540,1732342586587,-500.0,0.00053079,120]
[343084541,1732342586610,-1107.13,0.00053079,120]
[343084542,1732342586633,-3716.05,0.00053079,120]
[343084543,1732342586657,-500.0,0.00053079,120]
[343084544,1732342586680,-543.504845,0.00053079,120]
[343084545,1732342586705,-1196.9,0.00053079,120]
[343084546,1732342586727,-2538.18,0.00053079,120]
[343084547,1732342586752,-8476.96,0.00053079,120]
[343084548,1732342586774,-500.0,0.00053079,120]
[343084549,1732342586797,-500.0,0.00053079,120]
[343084550,1732342586819,-687.41,0.00053079,120]
[343084551,1732342586841,-657.54,0.00053079,120]
[343084552,1732342586864,-500.0,0.00053079,120]
[343084553,1732342586885,-500.0,0.00053079,120]
[343084554,1732342586906,-3475.21,0.00053079,120]
[343084555,1732342586928,-1661.92,0.00053079,120]
[343084556,1732342586954,-1661.92,0.00053079,120]
[343084557,1732342586986,-500.0,0.00053079,120]
[343084558,1732342587009,-500.0,0.00053079,120]
[343084559,1732342587041,-641.56,0.00053079,120]
[343084560,1732342587064,-500.0,0.00053079,120]
[343084561,1732342587086,-371.75255747,0.00053079,120]
[343084562,1732342587110,-622.81986813,0.00053079,120]
[343084563,1732342587132,-500.0,0.00053079,120]
[343084564,1732342587155,-500.0,0.00053079,120]
[343084565,1732342587178,-500.0,0.00053079,120]
[343084566,1732342587201,-1101.99,0.00053079,120]
[343084567,1732342587223,-4754.49,0.00053079,120]
[343084568,1732342587247,-500.0,0.00053079,120]
[343084569,1732342587269,-500.0,0.00053079,120]
[343084570,1732342587293,-992.6,0.00053079,120]
[343084571,1732342587316,-3985.29,0.00053079,120]
[343084572,1732342587339,-3985.29,0.00053079,120]
[343084573,1732342587362,-500.0,0.00053079,120]
[343084574,1732342587386,-500.0,0.00053079,120]
[343084575,1732342587415,-500.0,0.00053079,120]
[343084576,1732342587439,-500.0,0.00053079,120]
[343084577,1732342587468,-3964.32,0.00053079,120]
[343084578,1732342587491,-3159.25,0.00053079,120]
[343084579,1732342587515,-500.0,0.00053079,120]
[343084580,1732342587538,-500.0,0.00053079,120]
[343084581,1732342587561,-500.0,0.00053079,120]
[343084582,1732342587726,-500.0,0.00053079,120]
[343084583,1732342587754,-500.0,0.00053079,120]
[343084584,1732342587779,-161.138296,0.00053079,120]
[343084585,1732342587802,-500.0,0.00053079,120]
[343084586,1732342587825,-1083.4,0.00053079,120]
[343084587,1732342587848,-500.0,0.00053079,120]
[343084588,1732342587872,-500.0,0.00053079,120]
[343084589,1732342587896,-1083.4,0.00053079,120]
[343084590,1732342587919,-1226.91,0.00053079,120]
[343084591,1732342587942,-503.37984815,0.00053079,120]
[343084592,1732342587972,-500.0,0.00053079,120]
[343084593,1732342587996,-500.0,0.00053079,120]
[343084594,1732342588020,-500.0,0.00053079,120]
[343084595,1732342588043,-500.0,0.00053079,120]
[343084596,1732342588068,-1215.72,0.00053079,120]
[343084597,1732342588091,-533.92885485,0.00053079,120]
[343084598,1732342588113,-505.65422026,0.00053079,120]
[343084599,1732342588137,-500.0,0.00053079,120]
[343084600,1732342588160,-506.09821563,0.00053079,120]
[343084601,1732342588182,-501.08051196,0.00053079,120]
[343084602,1732342588206,-507.57227999,0.00053079,120]
[343084603,1732342588228,-505.69628224,0.00053079,120]
[343084604,1732342588250,-500.0,0.00053079,120]
[343084605,1732342588273,-500.0,0.00053079,120]
[343084606,1732342588295,-1095.93,0.00053079,120]
[343084607,1732342588318,-3751.45,0.00053079,120]
[343084608,1732342588341,-3751.45,0.00053079,120]
[343084609,1732342588364,-500.0,0.00053079,120]
[343084610,1732342588386,-500.0,0.00053079,120]
[343084611,1732342588408,-500.0,0.00053079,120]
[343084612,1732342588432,-500.0,0.00053079,21]
[343084613,1732342588456,-511.41130104,0.00053079,120]
[343084614,1732342588480,-500.0,0.00053079,120]
[343084615,1732342588502,-500.0,0.00053079,120]
[343084616,1732342588525,-500.0,0.00053079,120]
[343084617,1732342588548,-909.15,0.00053079,120]
[343084618,1732342588571,-909.15,0.00053079,120]
[343084619,1732342588593,-500.0,0.00053079,120]
[343084620,1732342588615,-500.0,0.00053079,120]
[343084621,1732342588638,-500.0,0.00053079,120]
[343084622,1732342588659,-500.0,0.00053079,120]
[343084623,1732342588682,-500.0,0.00053079,120]
[343084624,1732342588704,-500.0,0.00053079,120]
[343084625,1732342588728,-3370.76,0.00053079,120]
[343084626,1732342588749,-3370.76,0.00053079,120]
[343084627,1732342588770,-500.0,0.00053079,120]
[343084628,1732342588791,-3934.26,0.00053079,120]
[343084629,1732342588816,-500.0,0.00053079,120]
[343084630,1732342588839,-502.88735348,0.00053079,120]
[343084631,1732342588860,-500.0,0.00053079,120]
[343084632,1732342588881,-500.0,0.00053079,120]
[343084633,1732342588899,-500.0,0.00053079,120]
[343084634,1732342588920,-613.67,0.00053079,120]